fUST/lending_fUST_20240528
["ID","MTS","AMOUNT","RATE_DAILY","PERIOD"]
[328061631,1716828649957,-3000.0,0.0002677,2]
[328061632,1716828649965,-3000.0,0.0002678,2]
[328061633,1716828649975,-3000.0,0.0002679,2]
[328061634,1716828649984,-968.26312279,0.00026793,2]
[328061635,1716828649994,-1628.7012624,0.00026793,2]
[328061636,1716828650003,-3000.0,0.000268,2]
[328061637,1716828650012,-151.0,0.0002681,2]
[328061638,1716828650021,-151.0,0.0002681,2]
[328061639,1716828650031,-370.995714,0.0002681,2]
[328061640,1716828650041,-370.995714,0.0002681,2]
[328061641,1716828650050,-308.933481,0.0002681,2]
[328061642,1716828650059,-308.933481,0.0002681,2]
[328061643,1716828650068,-3000.0,0.0002681,2]
[328061644,1716828650078,-151.0,0.0002681,2]
[328061645,1716828650088,-215.030216,0.0002681,2]
[328061646,1716828650097,-151.0,0.0002681,2]
[328061647,1716828650106,-796.317806,0.0002681,2]
[328061648,1716828650115,-796.317813,0.0002681,2]
[328061649,1716828650124,-1357.298408,0.0002681,2]
[328061650,1716828650133,-1357.298408,0.0002681,2]
[328061651,1716828650143,-151.0,0.0002681,2]
[328061652,1716828650152,-151.0,0.0002681,2]
[328061653,1716828650162,-424.084379,0.0002681,2]
[328061654,1716828650171,-424.084379,0.0002681,2]
[328061655,1716828650181,-151.0,0.0002681,2]
[328061656,1716828650190,-166.216976,0.0002681,2]
[328061657,1716828650199,-614.541471,0.0002681,2]
[328061658,1716828650209,-614.541471,0.0002681,2]
[328061659,1716828650218,-189.810211,0.0002681,2]
[328061660,1716828650228,-189.810217,0.0002681,2]
[328061661,1716828650238,-1283.113269,0.0002681,2]
[328061662,1716828650248,-1283.113265,0.0002681,2]
[328061663,1716828650259,-229.549055,0.0002681,2]
[328061664,1716828650269,-229.549047,0.0002681,2]
[328061665,1716828650278,-225.905459,0.0002681,2]
[328061666,1716828650289,-225.905465,0.0002681,2]
[328061667,1716828650298,-492.904212,0.0002681,2]
[328061668,1716828650307,-492.904222,0.0002681,2]
[328061669,1716828650316,-3000.0,0.0002682,2]
[328061670,1716828650325,-3000.0,0.0002683,2]
[328061671,1716828650335,-3000.0,0.0002684,2]
[328061672,1716828650344,-3000.0,0.0002685,2]
[328061673,1716828650353,-3000.0,0.0002686,2]
[328061674,1716828650362,-3000.0,0.0002687,2]
[328061675,1716828650371,-3000.0,0.0002688,2]
[328061676,1716828650380,-3000.0,0.0002689,2]
[328061677,1716828650389,-1686.51198135,0.00026897,2]
[328061678,1716828650398,-309.61283914,0.00026897,2]
[328061679,1716828650408,-308.933481,0.00026897,2]
[328061680,1716828650417,-308.933481,0.00026897,2]
[328061681,1716828650426,-151.0,0.00026897,2]
[328061682,1716828650434,-191.710611,0.00026897,2]
[328061683,1716828650443,-1357.298408,0.00026897,2]
[328061684,1716828650452,-1357.29840494,0.00026897,2]
[328061685,1716828650461,-151.0,0.00026897,2]
[328061686,1716828650471,-151.0,0.00026897,2]
[328061687,1716828650480,-424.084379,0.00026897,2]
[328061688,1716828650489,-424.084375,0.00026897,2]
[328061689,1716828650498,-151.0,0.00026897,2]
[328061690,1716828650507,-614.541471,0.00026897,2]
[328061691,1716828650516,-614.541477,0.00026897,2]
[328061692,1716828650527,-556.68434984,0.00026898,2]
[328061693,1716828650538,-99794.85526315,0.000269,7]
[328061694,1716828650547,-151.0,0.000269,2]
[328061695,1716828650556,-151.0,0.000269,2]
[328061696,1716828650565,-6136.11202219,0.000269,2]
[328061697,1716828650574,-370.995714,0.000269,2]
[328061698,1716828650583,-370.995714,0.000269,2]
[328061699,1716828650592,-308.933481,0.000269,2]
[328061700,1716828650602,-308.933479,0.000269,2]
[328061701,1716828650611,-3000.0,0.000269,2]
[328061702,1716828650619,-151.0,0.000269,2]
[328061703,1716828650629,-3000.0,0.0002691,2]
[328061704,1716828650715,-5592.835143,0.0002692,2]
[328061705,1716828650735,-968.26312279,0.00026944,2]
[328061706,1716828650744,-47423.67198473,0.00027,2]
[328061707,1716828650754,-7874.48,0.00027,2]
[328061708,1716828650767,-7874.48,0.00027,2]
[328061709,1716828650776,-7874.48,0.00027,2]
[328061710,1716828650787,-7874.48,0.00027,2]
[328061711,1716828650795,-7874.48,0.00027,2]
[328061712,1716828650807,-300.0,0.00027,2]
[328061713,1716828650817,-1000.0,0.00027,13]
[328061714,1716828650827,-151.0,0.00027,2]
[328061715,1716828650837,-151.0,0.00027,2]
[328061716,1716828650846,-151.0,0.00027,2]
[328061717,1716828650856,-154.93802479,0.00027011,3]
[328061718,1716828650865,-199.43444088,0.00027041,2]
[328061719,1716828650874,-237.13995564,0.0002709,2]
[328061720,1716828650883,-620.03515392,0.00027092,2]
[328061721,1716828650892,-320.0,0.00027119,2]
[328061722,1716828650902,-968.26312279,0.00027133,2]
[328061723,1716828650911,-497.0,0.00027164,2]
[328061724,1716828650920,-150.0,0.00027164,2]
[328061725,1716828650929,-282.0,0.000272,2]
[328061726,1716828650939,-500.0,0.0002726,2]
[328061727,1716828650948,-50000.0,0.0002727,7]
[328061728,1716828650958,-151.0,0.0002727,2]
[328061729,1716828650967,-80565.03,0.0002728,3]
[328061730,1716828650976,-180.964424,0.0002728,2]
[328061731,1716828650985,-1899.42450217,0.0002729,2]
[328061732,1716828650994,-204.95026634,0.00027292,2]
[328061733,1716828651004,-153.02842269,0.00027354,2]
[328061734,1716828651013,-998.0,0.00027369,5]
[328061735,1716828651023,-998.0,0.00027369,5]
[328061736,1716828651032,-998.0,0.00027369,5]
[328061737,1716828651043,-998.0,0.00027369,5]
[328061738,1716828651052,-998.0,0.00027369,5]
[328061739,1716828651061,-998.0,0.00027369,5]
[328061740,1716828651071,-998.0,0.00027369,5]
[328061741,1716828651080,-998.0,0.00027369,5]
[328061742,1716828651089,-998.0,0.00027369,5]
[328061743,1716828651098,-998.0,0.00027369,5]
[328061744,1716828651107,-998.0,0.00027369,5]
[328061745,1716828651117,-998.0,0.00027369,5]
[328061746,1716828651126,-998.0,0.00027369,5]
[328061747,1716828651136,-998.0,0.00027369,5]
[328061748,1716828651145,-998.0,0.00027369,5]
[328061749,1716828651154,-998.0,0.00027369,5]
[328061750,1716828651163,-998.0,0.00027369,5]
[328061751,1716828651172,-998.0,0.00027369,5]
[328061752,1716828651181,-998.0,0.00027369,5]
[328061753,1716828651190,-998.0,0.00027369,5]
[328061754,1716828651199,-998.0,0.00027369,5]
[328061755,1716828651209,-998.0,0.00027369,5]
[328061756,1716828651218,-998.0,0.00027369,5]
[328061757,1716828651227,-985.07736861,0.00027369,5]
[328061758,1716828651236,-1628.7012624,0.00027396,2]
[328061759,1716828651247,-200.47373201,0.00027397,2]
[328061760,1716828651257,-500.0,0.00027397,2]
[328061761,1716828651266,-306.835089,0.00027397,2]
[328061762,1716828651275,-500.0,0.00027397,4]
[328061763,1716828651284,-500.0,0.00027397,4]
[328061764,1716828651295,-500.0,0.00027397,4]
[328061765,1716828651304,-500.0,0.00027397,2]
[328061766,1716828651313,-505.57471392,0.00027397,2]
[328061767,1716828651323,-309.33967174,0.00027397,4]
[328061768,1716828651334,-500.0,0.00027397,4]
[328061769,1716828651342,-509.1360141,0.00027397,4]
[328061770,1716828651352,-513.73296173,0.00027397,4]
[328061771,1716828651362,-500.0,0.00027397,4]
[328061772,1716828651371,-506.60803133,0.00027397,4]
[328061773,1716828651380,-500.0,0.00027397,4]
[328061774,1716828651389,-500.0,0.00027397,4]
[328061775,1716828651398,-500.0,0.00027397,2]
[328061776,1716828651408,-824.6,0.00027397,4]
[328061777,1716828651418,-500.0,0.00027397,4]
[328061778,1716828651428,-500.0,0.00027397,4]
[328061779,1716828651440,-500.0,0.00027397,4]
[328061780,1716828651452,-506.52863417,0.00027397,4]
[328061781,1716828651462,-500.0,0.00027397,4]
[328061782,1716828651471,-500.0,0.00027397,4]
[328061783,1716828651480,-675.69,0.00027397,4]
[328061784,1716828651489,-500.0,0.00027397,4]
[328061785,1716828651498,-1000.0,0.00027397,5]
[328061786,1716828651507,-811.63,0.00027397,4]
[328061787,1716828651517,-500.0,0.00027397,4]
[328061788,1716828651527,-500.0,0.00027397,4]
[328061789,1716828651537,-500.0,0.00027397,2]
[328061790,1716828651547,-500.0,0.00027397,2]
[328061791,1716828651556,-500.0,0.00027397,2]
[328061792,1716828651565,-500.0,0.00027397,2]
[328061793,1716828651574,-500.0,0.00027397,2]
[328061794,1716828651583,-500.0,0.00027397,2]
[328061795,1716828651593,-500.0,0.00027397,2]
[328061796,1716828651602,-500.0,0.00027397,2]
[328061797,1716828651611,-500.0,0.00027397,2]
[328061798,1716828651620,-500.0,0.00027397,2]
[328061799,1716828651629,-500.0,0.00027397,2]
[328061800,1716828651638,-500.0,0.00027397,2]
[328061801,1716828651648,-500.0,0.00027397,2]
[328061802,1716828651658,-500.0,0.00027397,2]
[328061803,1716828651667,-500.0,0.00027397,2]
[328061804,1716828651676,-472.41510456,0.00027397,2]
[328061805,1716828651686,-500.0,0.00027397,2]
[328061806,1716828651695,-500.0,0.00027397,2]
[328061807,1716828651704,-500.0,0.00027397,2]
[328061808,1716828651713,-500.0,0.00027397,2]
[328061809,1716828651723,-500.0,0.00027397,2]
[328061810,1716828651733,-500.0,0.00027397,2]
[328061811,1716828651742,-503.7298672,0.00027397,4]
[328061812,1716828651751,-508.5679595,0.00027397,4]
[328061813,1716828651768,-500.0,0.00027397,4]
[328061814,1716828651777,-499.99999999,0.00027397,2]
[328061815,1716828651788,-507.79119537,0.00027397,4]
[328061816,1716828651799,-510.88041898,0.00027397,4]
[328061817,1716828651809,-500.0,0.00027397,4]
[328061818,1716828651818,-726.55,0.00027397,4]
[328061819,1716828651827,-525.45289626,0.00027397,4]
[328061820,1716828651836,-500.0,0.00027397,4]
[328061821,1716828651847,-248.38372844,0.00027397,4]
[328061822,1716828651860,-500.0,0.00027397,4]
[328061823,1716828651869,-500.0,0.00027397,4]
[328061824,1716828651878,-513.32848632,0.00027397,4]
[328061825,1716828651887,-500.0,0.00027397,4]
[328061826,1716828651898,-500.0,0.00027397,4]
[328061827,1716828651907,-500.0,0.00027397,4]
[328061828,1716828651916,-500.0,0.00027397,4]
[328061829,1716828651926,-225.40220423,0.00027397,4]
[328061830,1716828651935,-500.0,0.00027397,4]
[328061831,1716828651945,-500.0,0.00027397,4]
[328061832,1716828651955,-500.0,0.00027397,4]
[328061833,1716828651964,-500.0,0.00027397,4]
[328061834,1716828651973,-500.0,0.00027397,4]
[328061835,1716828651982,-508.39688904,0.00027397,4]
[328061836,1716828651991,-500.0,0.00027397,4]
[328061837,1716828652000,-500.0,0.00027397,4]
[328061838,1716828652009,-626.93,0.00027397,4]
[328061839,1716828652019,-500.0,0.00027397,4]
[328061840,1716828652028,-500.0,0.00027397,4]
[328061841,1716828652039,-500.0,0.00027397,4]
[328061842,1716828652049,-508.79119028,0.00027397,4]
[328061843,1716828652058,-508.94614182,0.00027397,4]
[328061844,1716828652068,-505.20116449,0.00027397,4]
[328061845,1716828652077,-511.7550677,0.00027397,4]
[328061846,1716828652088,-500.0,0.00027397,4]
[328061847,1716828652097,-500.0,0.00027397,4]
[328061848,1716828652107,-501.36232095,0.00027397,4]
[328061849,1716828652116,-500.0,0.00027397,4]
[328061850,1716828652125,-500.0,0.00027397,4]
[328061851,1716828652135,-500.0,0.00027397,4]
[328061852,1716828652144,-500.0,0.00027397,4]
[328061853,1716828652154,-500.0,0.00027397,4]
[328061854,1716828652163,-506.64847741,0.00027397,4]
[328061855,1716828652172,-1224.04,0.00027397,4]
[328061856,1716828652181,-500.0,0.00027397,4]
[328061857,1716828652190,-500.0,0.00027397,4]
[328061858,1716828652199,-500.0,0.00027397,4]
[328061859,1716828652209,-373.61123384,0.00027397,4]
[328061860,1716828652302,-501.75018305,0.00027397,4]
[328061861,1716828652311,-535.59,0.00027397,4]
[328061862,1716828652321,-500.0,0.00027397,4]
[328061863,1716828652330,-502.2972686,0.00027397,4]
[328061864,1716828652339,-511.72803807,0.00027397,4]
[328061865,1716828652349,-500.0,0.00027397,4]
[328061866,1716828652358,-500.0,0.00027397,4]
[328061867,1716828652367,-500.0,0.00027397,4]
[328061868,1716828652376,-501.03714942,0.00027397,4]
[328061869,1716828652386,-505.16438762,0.00027397,4]
[328061870,1716828652395,-500.0,0.00027397,4]
[328061871,1716828652404,-500.0,0.00027397,4]
[328061872,1716828652413,-515.43,0.00027397,4]
[328061873,1716828652423,-500.0,0.00027397,4]
[328061874,1716828652432,-506.39645298,0.00027397,4]
[328061875,1716828652442,-531.54,0.00027397,4]
[328061876,1716828652452,-500.0,0.00027397,4]
[328061877,1716828652462,-500.0,0.00027397,4]
[328061878,1716828652471,-500.0,0.00027397,4]
[328061879,1716828652480,-500.0,0.00027397,4]
[328061880,1716828652490,-659.49,0.00027397,4]
[328061881,1716828652500,-500.0,0.00027397,4]
[328061882,1716828652511,-628.80934605,0.00027397,4]
[328061883,1716828652522,-500.0,0.00027397,4]
[328061884,1716828652531,-500.0,0.00027397,4]
[328061885,1716828652542,-500.0,0.00027397,4]
[328061886,1716828652551,-500.0,0.00027397,4]
[328061887,1716828652561,-500.0,0.00027397,4]
[328061888,1716828652570,-500.0,0.00027397,4]
[328061889,1716828652580,-161.21766067,0.00027397,4]
[328061890,1716828652588,-500.0,0.00027397,4]
[328061891,1716828652597,-532.12797045,0.00027397,4]
[328061892,1716828652606,-515.79584692,0.00027397,4]
[328061893,1716828652615,-500.0,0.00027397,4]
[328061894,1716828652625,-500.0,0.00027397,4]
[328061895,1716828652633,-500.0,0.00027397,4]
[328061896,1716828652642,-500.0,0.00027397,4]
[328061897,1716828652652,-1246.45,0.00027397,4]
[328061898,1716828652663,-504.45,0.00027397,4]
[328061899,1716828652672,-510.08691732,0.00027397,4]
[328061900,1716828652681,-313.81064099,0.00027397,4]
[328061901,1716828652689,-682.29,0.00027397,4]
[328061902,1716828652698,-509.39331663,0.00027397,4]
[328061903,1716828652707,-500.0,0.00027397,4]
[328061904,1716828652715,-500.0,0.00027397,4]
[328061905,1716828652724,-500.0,0.00027397,4]
[328061906,1716828652733,-511.17516264,0.00027397,4]
[328061907,1716828652742,-510.32965651,0.00027397,4]
[328061908,1716828652751,-500.0,0.00027397,4]
[328061909,1716828652763,-510.59339555,0.00027397,4]
[328061910,1716828652772,-500.0,0.00027397,4]
[328061911,1716828652781,-153.3643,0.00027397,2]
[328061912,1716828652791,-500.0,0.00027397,4]
[328061913,1716828652800,-500.0,0.00027397,4]
[328061914,1716828652809,-500.0,0.00027397,4]
[328061915,1716828652818,-500.0,0.00027397,4]
[328061916,1716828652827,-510.31464612,0.00027397,4]
[328061917,1716828652836,-550.01,0.00027397,4]
[328061918,1716828652849,-851.4,0.00027397,4]
[328061919,1716828652858,-500.0,0.00027397,4]
[328061920,1716828652867,-500.0,0.00027397,2]
[328061921,1716828652876,-500.0,0.00027397,4]
[328061922,1716828652885,-507.04491413,0.00027397,4]
[328061923,1716828652895,-1016.02,0.00027397,4]
[328061924,1716828652904,-500.0,0.00027397,4]
[328061925,1716828652912,-505.48212463,0.00027397,4]
[328061926,1716828652921,-543.53080502,0.00027397,4]
[328061927,1716828652931,-502.90385716,0.00027397,4]
[328061928,1716828652940,-500.0,0.00027397,4]
[328061929,1716828652949,-728.84,0.00027397,4]
[328061930,1716828652957,-505.47039577,0.00027397,4]
[328061931,1716828652966,-504.24599358,0.00027397,4]
[328061932,1716828652975,-1130.97,0.00027397,4]
[328061933,1716828652984,-1216.29,0.00027397,4]
[328061934,1716828652993,-503.85470944,0.00027397,4]
[328061935,1716828653002,-509.71284125,0.00027397,4]
[328061936,1716828653011,-153.8,0.00027397,2]
[328061937,1716828653020,-509.52831136,0.00027397,4]
[328061938,1716828653029,-167.934564,0.00027397,2]
[328061939,1716828653040,-2810.41,0.00027397,4]
[328061940,1716828653048,-500.0,0.00027397,4]
[328061941,1716828653057,-500.0,0.00027397,4]
[328061942,1716828653066,-525.68561306,0.00027397,4]
[328061943,1716828653075,-2432.96,0.00027397,4]
[328061944,1716828653084,-500.0,0.00027397,4]
[328061945,1716828653094,-518.2,0.00027397,4]
[328061946,1716828653103,-509.77,0.00027397,4]
[328061947,1716828653112,-500.0,0.00027397,4]
[328061948,1716828653122,-500.0,0.00027397,4]
[328061949,1716828653131,-2823.17,0.00027397,4]
[328061950,1716828653141,-500.0,0.00027397,4]
[328061951,1716828653150,-503.87593627,0.00027397,4]
[328061952,1716828653159,-500.0,0.00027397,4]
[328061953,1716828653168,-500.0,0.00027397,4]
[328061954,1716828653177,-500.0,0.00027397,4]
[328061955,1716828653186,-500.0,0.00027397,4]
[328061956,1716828653196,-639.85,0.00027397,4]
[328061957,1716828653205,-760.94,0.00027397,4]
[328061958,1716828653214,-500.0,0.00027397,4]
[328061959,1716828653224,-500.0,0.00027397,4]
[328061960,1716828653234,-625.4,0.00027397,4]
[328061961,1716828653243,-505.77530336,0.00027397,4]
[328061962,1716828653253,-695.6,0.00027397,4]
[328061963,1716828653262,-695.6,0.00027397,4]
[328061964,1716828653271,-695.6,0.00027397,4]
[328061965,1716828653280,-695.6,0.00027397,4]
[328061966,1716828653291,-695.6,0.00027397,4]
[328061967,1716828653300,-695.6,0.00027397,4]
[328061968,1716828653310,-695.6,0.00027397,4]
[328061969,1716828653320,-695.6,0.00027397,4]
[328061970,1716828653331,-695.6,0.00027397,4]
[328061971,1716828653342,-695.6,0.00027397,4]
[328061972,1716828653351,-695.6,0.00027397,4]
[328061973,1716828653360,-695.6,0.00027397,4]
[328061974,1716828653369,-695.6,0.00027397,4]
[328061975,1716828653379,-695.6,0.00027397,4]
[328061976,1716828653388,-695.6,0.00027397,4]
[328061977,1716828653398,-695.6,0.00027397,4]
[328061978,1716828653407,-695.6,0.00027397,4]
[328061979,1716828653417,-695.6,0.00027397,4]
[328061980,1716828653428,-695.6,0.00027397,4]
[328061981,1716828653437,-500.0,0.00027397,4]
[328061982,1716828653447,-695.6,0.00027397,4]
[328061983,1716828653456,-695.6,0.00027397,4]
[328061984,1716828653465,-695.6,0.00027397,4]
[328061985,1716828653474,-695.6,0.00027397,4]
[328061986,1716828653483,-695.67630855,0.00027397,4]
[328061987,1716828653492,-500.0,0.00027397,4]
[328061988,1716828653501,-500.0,0.00027397,4]
[328061989,1716828653511,-500.0,0.00027397,4]
[328061990,1716828653520,-500.0,0.00027397,4]
[328061991,1716828653529,-594.07,0.00027397,4]
[328061992,1716828653539,-500.0,0.00027397,4]
[328061993,1716828653548,-500.0,0.00027397,4]
[328061994,1716828653557,-500.0,0.00027397,4]
[328061995,1716828653566,-500.0,0.00027397,4]
[328061996,1716828653575,-500.0,0.00027397,4]
[328061997,1716828653585,-500.0,0.00027397,4]
[328061998,1716828653594,-500.0,0.00027397,4]
[328061999,1716828653603,-500.0,0.00027397,4]
[328062000,1716828653612,-500.0,0.00027397,4]
[328062001,1716828653621,-500.0,0.00027397,4]
[328062002,1716828653630,-531.57462825,0.00027397,4]
[328062003,1716828653716,-500.0,0.00027397,4]
[328062004,1716828653725,-550.45669423,0.00027397,4]
[328062005,1716828653735,-500.0,0.00027397,4]
[328062006,1716828653743,-502.43443289,0.00027397,4]
[328062007,1716828653753,-1000.0,0.00027397,4]
[328062008,1716828653765,-984.46,0.00027397,4]
[328062009,1716828653775,-2041.19,0.00027397,4]
[328062010,1716828653784,-500.0,0.00027397,4]
[328062011,1716828653794,-500.0,0.00027397,4]
[328062012,1716828653805,-500.0,0.00027397,4]
[328062013,1716828653814,-2214.31,0.00027397,4]
[328062014,1716828653824,-500.0,0.00027397,4]
[328062015,1716828653833,-1654.46,0.00027397,4]
[328062016,1716828653847,-500.0,0.00027397,4]
[328062017,1716828653858,-500.0,0.00027397,4]
[328062018,1716828653867,-500.0,0.00027397,4]
[328062019,1716828653877,-591.11,0.00027397,4]
[328062020,1716828653886,-247.41164077,0.00027397,4]
[328062021,1716828653895,-924.61,0.00027397,4]
[328062022,1716828653905,-506.96267272,0.00027397,4]
[328062023,1716828653914,-500.0,0.00027397,4]
[328062024,1716828653924,-314.74553613,0.00027397,4]
[328062025,1716828653933,-507.45790547,0.00027397,4]
[328062026,1716828653942,-500.0,0.00027397,4]
[328062027,1716828653952,-500.0,0.00027397,4]
[328062028,1716828653962,-500.0,0.00027397,4]
[328062029,1716828653972,-393.01579565,0.00027397,4]
[328062030,1716828653981,-500.0,0.00027397,4]
[328062031,1716828653991,-500.0,0.00027397,4]
[328062032,1716828654000,-209.77826293,0.00027397,4]
[328062033,1716828654010,-500.0,0.00027397,4]
[328062034,1716828654019,-500.0,0.00027397,4]
[328062035,1716828654028,-387.66654064,0.00027397,4]
[328062036,1716828654037,-508.91967127,0.00027397,4]
[328062037,1716828654047,-500.0,0.00027397,4]
[328062038,1716828654057,-1453.45,0.00027397,4]
[328062039,1716828654066,-641.76,0.00027397,4]
[328062040,1716828654076,-641.56,0.00027397,4]
[328062041,1716828654086,-500.0,0.00027397,4]
[328062042,1716828654095,-500.0,0.00027397,4]
[328062043,1716828654104,-500.0,0.00027397,4]
[328062044,1716828654114,-509.89635097,0.00027397,4]
[328062045,1716828654123,-504.25844571,0.00027397,4]
[328062046,1716828654132,-500.0,0.00027397,4]
[328062047,1716828654142,-500.0,0.00027397,4]
[328062048,1716828654151,-500.0,0.00027397,4]
[328062049,1716828654160,-500.0,0.00027397,4]
[328062050,1716828654170,-500.0,0.00027397,4]
[328062051,1716828654179,-508.52344375,0.00027397,4]
[328062052,1716828654189,-500.0,0.00027397,4]
[328062053,1716828654198,-500.0,0.00027397,4]
[328062054,1716828654207,-500.0,0.00027397,4]
[328062055,1716828654217,-500.0,0.00027397,4]
[328062056,1716828654227,-949.44,0.00027397,4]
[328062057,1716828654236,-3125.75,0.00027397,4]
[328062058,1716828654245,-500.0,0.00027397,4]
[328062059,1716828654255,-866.38,0.00027397,4]
[328062060,1716828654265,-502.00930581,0.00027397,4]
[328062061,1716828654274,-1068.09,0.00027397,4]
[328062062,1716828654283,-500.0,0.00027397,4]
[328062063,1716828654293,-497.55558829,0.00027397,4]
[328062064,1716828654302,-831.3,0.00027397,4]
[328062065,1716828654312,-654.84,0.00027397,4]
[328062066,1716828654321,-1063.2,0.00027397,4]
[328062067,1716828654330,-988.59,0.00027397,4]
[328062068,1716828654339,-500.0,0.00027397,4]
[328062069,1716828654348,-500.0,0.00027397,4]
[328062070,1716828654358,-554.66626796,0.00027397,4]
[328062071,1716828654367,-500.0,0.00027397,4]
[328062072,1716828654377,-2485.43,0.00027397,4]
[328062073,1716828654386,-691.66,0.00027397,4]
[328062074,1716828654396,-438.05575286,0.00027397,4]
[328062075,1716828654405,-500.0,0.00027397,4]
[328062076,1716828654415,-500.0,0.00027397,4]
[328062077,1716828654424,-420.12509173,0.00027397,4]
[328062078,1716828654434,-500.0,0.00027397,4]
[328062079,1716828654443,-514.35492479,0.00027397,4]
[328062080,1716828654452,-502.45456644,0.00027397,4]
[328062081,1716828654461,-500.0,0.00027397,4]
[328062082,1716828654471,-500.0,0.00027397,4]
[328062083,1716828654480,-563.58,0.00027397,4]
[328062084,1716828654489,-540.61181203,0.00027397,4]
[328062085,1716828654498,-500.0,0.00027397,4]
[328062086,1716828654507,-3918.91,0.00027397,4]
[328062087,1716828654516,-500.0,0.00027397,4]
[328062088,1716828654525,-500.88723296,0.00027397,4]
[328062089,1716828654535,-502.04959721,0.00027397,4]
[328062090,1716828654546,-520.07,0.00027397,4]
[328062091,1716828654555,-1269.93,0.00027397,4]
[328062092,1716828654564,-500.0,0.00027397,4]
[328062093,1716828654573,-1098.77,0.00027397,4]
[328062094,1716828654583,-500.0,0.00027397,4]
[328062095,1716828654592,-500.0,0.00027397,4]
[328062096,1716828654602,-500.0,0.00027397,4]
[328062097,1716828654611,-500.0,0.00027397,4]
[328062098,1716828654620,-500.0,0.00027397,4]
[328062099,1716828654629,-3693.27,0.00027397,4]
[328062100,1716828654638,-500.0,0.00027397,4]
[328062101,1716828654647,-502.83866345,0.00027397,4]
[328062102,1716828654656,-352.99714463,0.00027397,4]
[328062103,1716828654665,-500.0,0.00027397,4]
[328062104,1716828654675,-500.0,0.00027397,4]
[328062105,1716828654684,-500.0,0.00027397,4]
[328062106,1716828654693,-500.0,0.00027397,4]
[328062107,1716828654703,-500.0,0.00027397,4]
[328062108,1716828654712,-530.15,0.00027397,4]
[328062109,1716828654721,-500.0,0.00027397,4]
[328062110,1716828654730,-536.32,0.00027397,4]
[328062111,1716828654739,-500.0,0.00027397,4]
[328062112,1716828654748,-500.0,0.00027397,4]
[328062113,1716828654761,-500.0,0.00027397,4]
[328062114,1716828654771,-500.0,0.00027397,4]
[328062115,1716828654780,-500.0,0.00027397,4]
[328062116,1716828654790,-611.73,0.00027397,4]
[328062117,1716828654800,-507.18189471,0.00027397,4]
[328062118,1716828654810,-500.0,0.00027397,4]
[328062119,1716828654819,-520.32368157,0.00027397,4]
[328062120,1716828654828,-503.92314956,0.00027397,4]
[328062121,1716828654837,-500.0,0.00027397,4]
[328062122,1716828654847,-500.0,0.00027397,4]
[328062123,1716828654856,-500.0,0.00027397,4]
[328062124,1716828654865,-297.45470915,0.00027397,4]
[328062125,1716828654874,-725.57,0.00027397,4]
[328062126,1716828654882,-500.0,0.00027397,4]
[328062127,1716828654891,-1157.28,0.00027397,2]
[328062128,1716828654900,-500.0,0.00027397,4]
[328062129,1716828654910,-542.26576189,0.00027397,4]
[328062130,1716828654919,-502.08216581,0.00027397,4]